fUST/lending_fUST_20250113
["ID","MTS","AMOUNT","RATE_DAILY","PERIOD"]
[348708729,1736737838892,-500.0,0.00019177,2]
[348708730,1736737838901,-327.67335015,0.00019177,2]
[348708953,1736737843518,-172.32664985,0.00019177,2]
[348708955,1736737843528,-500.0,0.00019177,2]
[348708957,1736737843540,-500.0,0.00019177,2]
[348708959,1736737843550,-500.0,0.00019177,2]
[348708962,1736737843559,-500.0,0.00019177,2]
[348708964,1736737843569,-500.0,0.00019177,2]
[348708966,1736737843578,-500.0,0.00019177,2]
[348708968,1736737843587,-500.0,0.00019177,2]
[348708970,1736737843597,-500.0,0.00019177,2]
[348708972,1736737843607,-500.0,0.00019177,2]
[348708974,1736737843616,-500.0,0.00019177,2]
[348708976,1736737843625,-500.0,0.00019177,2]
[348708978,1736737843634,-500.0,0.00019177,2]
[348708980,1736737843643,-500.0,0.00019177,2]
[348708982,1736737843653,-500.0,0.00019177,2]
[348708984,1736737843662,-500.0,0.00019177,2]
[348708986,1736737843671,-500.0,0.00019177,2]
[348708988,1736737843680,-500.0,0.00019177,2]
[348708989,1736737843689,-500.0,0.00019177,2]
[348708992,1736737843699,-128.16215067,0.00019177,2]
[348709253,1736737846447,-371.83784933,0.00019177,2]
[348709254,1736737846457,-500.0,0.00019177,2]
[348709255,1736737846467,-500.0,0.00019177,2]
[348709256,1736737846477,-500.0,0.00019177,2]
[348709257,1736737846486,-500.0,0.00019177,2]
[348709258,1736737846496,-500.0,0.00019177,2]
[348709259,1736737846506,-500.0,0.00019177,2]
[348709260,1736737846516,-500.0,0.00019177,2]
[348709261,1736737846526,-500.0,0.00019177,2]
[348709262,1736737846538,-186.24268495,0.00019177,2]
[348709263,1736737846550,-313.75731505,0.00019177,2]
[348709264,1736737846559,-500.0,0.00019177,2]
[348709265,1736737846568,-234.64803658,0.00019177,2]
[348709266,1736737846577,-500.0,0.00019177,2]
[348709267,1736737846586,-500.0,0.00019177,2]
[348709268,1736737846595,-500.0,0.00019177,2]
[348709269,1736737846605,-500.0,0.00019177,2]
[348709270,1736737846614,-500.0,0.00019177,2]
[348709271,1736737846623,-500.0,0.00019177,2]
[348709272,1736737846632,-500.0,0.00019177,2]
[348709273,1736737846641,-500.0,0.00019177,2]
[348709274,1736737846651,-500.0,0.00019177,2]
[348709275,1736737846660,-500.0,0.00019177,2]
[348709277,1736737846669,-500.0,0.00019177,2]
[348709279,1736737846678,-500.0,0.00019177,2]
[348709280,1736737846687,-500.0,0.00019177,2]
[348709282,1736737846696,-500.0,0.00019177,2]
[348709284,1736737846706,-500.0,0.00019177,2]
[348709286,1736737846715,-500.0,0.00019177,2]
[348709288,1736737846724,-500.0,0.00019177,2]
[348709290,1736737846732,-500.0,0.00019177,2]
[348709292,1736737846742,-300.0,0.00019177,2]
[348709294,1736737846751,-240.46069141,0.00019177,2]
[348709296,1736737846760,-295.67990653,0.00019177,2]
[348709298,1736737846769,-500.0,0.00019177,2]
[348709300,1736737846778,-526.19679897,0.00019177,2]
[348709302,1736737846790,-234.52327448,0.00019178,2]
[348709304,1736737846799,-518.04609401,0.00019178,2]
[348709306,1736737846808,-500.0,0.00019178,2]
[348709308,1736737846817,-500.0,0.00019178,2]
[348709310,1736737846827,-500.0,0.00019178,2]
[348709312,1736737846839,-392.51603865,0.00019178,2]
[348709314,1736737846849,-514.67590185,0.00019178,2]
[348709316,1736737846859,-525.56919864,0.00019178,2]
[348709318,1736737846868,-500.0,0.00019178,2]
[348709320,1736737846879,-500.0,0.00019178,2]
[348709322,1736737846887,-500.0,0.00019178,2]
[348709324,1736737846896,-594.53056671,0.00019178,2]
[348709325,1736737846905,-506.22123366,0.00019178,2]
[348709327,1736737846916,-500.0,0.00019178,2]
[348709329,1736737846925,-500.0,0.00019178,2]
[348709331,1736737846935,-500.60305672,0.00019178,2]
[348709333,1736737846944,-500.0,0.00019178,2]
[348709335,1736737846953,-500.0,0.00019178,2]
[348709337,1736737846962,-500.0,0.00019178,2]
[348709339,1736737846972,-500.0,0.00019178,2]
[348709341,1736737846981,-500.0,0.00019178,2]
[348709344,1736737846991,-578.01462861,0.00019178,2]
[348709346,1736737847000,-500.0,0.00019178,2]
[348709348,1736737847010,-500.0,0.00019178,2]
[348709349,1736737847019,-500.0,0.00019178,2]
[348709352,1736737847028,-500.0,0.00019178,2]
[348709354,1736737847039,-266.54836731,0.00019178,2]
[348709355,1736737847048,-500.0,0.00019178,2]
[348709357,1736737847058,-500.0,0.00019178,2]
[348709359,1736737847067,-500.0,0.00019178,2]
[348709371,1736737847165,-500.0,0.00019178,2]
[348709373,1736737847178,-500.0,0.00019178,2]
[348709375,1736737847186,-505.53382475,0.00019178,2]
[348709377,1736737847196,-500.0,0.00019178,2]
[348709379,1736737847205,-173.17582977,0.00019178,2]
[348709381,1736737847214,-500.0,0.00019178,2]
[348709383,1736737847223,-150.4140118,0.00019178,2]
[348709385,1736737847234,-500.0,0.00019178,2]
[348709387,1736737847244,-500.0,0.00019178,2]
[348709389,1736737847253,-504.5637633,0.00019178,2]
[348709391,1736737847263,-500.0,0.00019178,2]
[348709393,1736737847273,-525.98,0.00019178,2]
[348709395,1736737847282,-500.0,0.00019178,2]
[348709397,1736737847292,-500.0,0.00019178,2]
[348709399,1736737847301,-500.0,0.00019178,2]
[348709401,1736737847311,-506.50635921,0.00019178,2]
[348709403,1736737847321,-500.0,0.00019178,2]
[348709405,1736737847330,-502.75685267,0.00019178,2]
[348709407,1736737847340,-500.0,0.00019178,2]
[348709409,1736737847354,-200.0,0.00019178,2]
[348709411,1736737847363,-500.0,0.00019178,2]
[348709413,1736737847372,-176.79359089,0.00019178,2]
[348709415,1736737847382,-499.12310711,0.00019178,2]
[348709417,1736737847391,-504.97681335,0.00019178,2]
[348709419,1736737847400,-509.64219105,0.00019178,2]
[348709422,1736737847410,-500.0,0.00019178,2]
[348709424,1736737847419,-500.0,0.00019178,2]
[348709426,1736737847429,-163.02163024,0.00019178,2]
[348709428,1736737847438,-500.0,0.00019178,2]
[348709429,1736737847447,-377.5582039,0.00019178,2]
[348709432,1736737847456,-500.0,0.00019178,2]
[348709434,1736737847469,-500.0,0.00019178,2]
[348709436,1736737847478,-500.0,0.00019178,2]
[348709438,1736737847487,-500.0,0.00019178,2]
[348709440,1736737847496,-500.0,0.00019178,2]
[348709442,1736737847505,-500.0,0.00019178,2]
[348709444,1736737847514,-500.0,0.00019178,2]
[348709446,1736737847523,-507.50702301,0.00019178,2]
[348709448,1736737847533,-500.0,0.00019178,2]
[348709450,1736737847543,-213.59811521,0.00019178,2]
[348709452,1736737847552,-500.0,0.00019178,2]
[348709454,1736737847561,-500.0,0.00019178,2]
[348709456,1736737847571,-500.0,0.00019178,2]
[348709458,1736737847580,-500.0,0.00019178,2]
[348709460,1736737847589,-500.0,0.00019178,2]
[348709462,1736737847599,-253.07873812,0.00019178,2]
[348709464,1736737847608,-500.0,0.00019178,2]
[348709466,1736737847617,-501.20101974,0.00019178,2]
[348709468,1736737847626,-500.0,0.00019178,2]
[348709470,1736737847635,-500.0,0.00019178,2]
[348709472,1736737847644,-123.26177868,0.00019178,2]
[348709474,1736737847658,-376.73822132,0.00019178,2]
[348709476,1736737847667,-500.0,0.00019178,2]
[348709478,1736737847676,-500.0,0.00019178,2]
[348709480,1736737847685,-300.11297807,0.00019178,2]
[348709482,1736737847695,-500.0,0.00019178,2]
[348709484,1736737847704,-500.0,0.00019178,2]
[348709486,1736737847713,-500.0,0.00019178,2]
[348709488,1736737847722,-500.0,0.00019178,2]
[348709490,1736737847731,-500.0,0.00019178,2]
[348709492,1736737847740,-500.0,0.00019178,2]
[348709494,1736737847749,-500.0,0.00019178,2]
[348709496,1736737847759,-506.2724482,0.00019178,2]
[348709498,1736737847768,-500.0,0.00019178,2]
[348709500,1736737847777,-516.81638278,0.00019178,2]
[348709502,1736737847788,-500.0,0.00019178,2]
[348709504,1736737847798,-500.0,0.00019178,2]
[348709506,1736737847807,-500.0,0.00019178,2]
[348709508,1736737847817,-500.0,0.00019178,2]
[348709510,1736737847827,-500.0,0.00019178,2]
[348709512,1736737847838,-500.0,0.00019178,2]
[348709514,1736737847849,-500.0,0.00019178,2]
[348709516,1736737847858,-283.60692813,0.00019178,2]
[348709518,1736737847867,-500.0,0.00019178,2]
[348709520,1736737847876,-500.0,0.00019178,2]
[348709522,1736737847887,-500.0,0.00019178,2]
[348709524,1736737847896,-500.0,0.00019178,2]
[348709526,1736737847905,-503.75805445,0.00019178,2]
[348709528,1736737847915,-500.0,0.00019178,2]
[348709530,1736737847924,-500.0,0.00019178,2]
[348709532,1736737847934,-509.6451114,0.00019178,2]
[348709534,1736737847945,-500.0,0.00019178,2]
[348709536,1736737847955,-511.64293557,0.00019178,2]
[348709538,1736737847964,-513.6012736,0.00019178,2]
[348709540,1736737847973,-514.05094604,0.00019178,2]
[348709542,1736737847982,-506.14616287,0.00019178,2]
[348709544,1736737847991,-500.0,0.00019178,2]
[348709546,1736737848001,-500.0,0.00019178,2]
[348709548,1736737848011,-354.856981,0.00019178,2]
[348709550,1736737848020,-354.856981,0.00019178,2]
[348709552,1736737848029,-354.856981,0.00019178,2]
[348709554,1736737848039,-354.856981,0.00019178,2]
[348709556,1736737848048,-500.0,0.00019178,2]
[348709558,1736737848058,-354.856981,0.00019178,2]
[348709560,1736737848067,-354.856981,0.00019178,2]
[348709562,1736737848076,-354.856981,0.00019178,2]
[348709564,1736737848085,-354.856981,0.00019178,2]
[348709566,1736737848095,-500.0,0.00019178,2]
[348709568,1736737848104,-500.0,0.00019178,2]
[348709570,1736737848113,-64.1350652,0.00019178,2]
[348709573,1736737848125,-435.8649348,0.00019178,2]
[348709575,1736737848135,-500.0,0.00019178,2]
[348709577,1736737848144,-500.0,0.00019178,2]
[348709579,1736737848155,-500.0,0.00019178,2]
[348709581,1736737848164,-500.0,0.00019178,2]
[348709583,1736737848173,-507.25890841,0.00019178,2]
[348709585,1736737848183,-500.0,0.00019178,2]
[348709587,1736737848191,-500.0,0.00019178,2]
[348709589,1736737848200,-500.0,0.00019178,2]
[348709591,1736737848210,-463.32174945,0.00019178,2]
[348709593,1736737848219,-737.16,0.00019178,2]
[348709595,1736737848228,-500.0,0.00019178,2]
[348709596,1736737848237,-500.0,0.00019178,2]
[348709598,1736737848246,-658.68,0.00019178,2]
[348709600,1736737848256,-511.94108868,0.00019178,2]
[348709603,1736737848266,-506.06251404,0.00019178,2]
[348709604,1736737848275,-3530.6,0.00019178,2]
[348709607,1736737848286,-500.0,0.00019178,2]
[348709608,1736737848295,-506.33625038,0.00019178,2]
[348709611,1736737848305,-783.4,0.00019178,2]
[348709613,1736737848314,-3303.41,0.00019178,2]
[348709615,1736737848324,-505.17320213,0.00019178,2]
[348709617,1736737848333,-500.0,0.00019178,2]
[348709619,1736737848342,-505.89627452,0.00019178,2]
[348709621,1736737848352,-504.67913043,0.00019178,2]
[348709623,1736737848361,-507.59213142,0.00019178,2]
[348709625,1736737848371,-500.0,0.00019178,2]
[348709627,1736737848380,-2161.34,0.00019178,2]
[348709629,1736737848389,-500.0,0.00019178,2]
[348709631,1736737848398,-500.0,0.00019178,2]
[348709633,1736737848407,-500.0,0.00019178,2]
[348709635,1736737848417,-502.48,0.00019178,2]
[348709637,1736737848426,-500.0,0.00019178,2]
[348709639,1736737848434,-134.80380574,0.00019178,2]
[348709878,1736738687559,270.50315,0.00013973,2]
[348709928,1736739032934,-6395.6594406,0.00018176,2]
[348709929,1736739032943,-630.488,0.0001848,2]
[348709930,1736739032952,-385.04893014,0.000189,2]
[348709931,1736739032964,-270.37846487,0.000189,2]
[348709932,1736739032973,-306.97242296,0.00019,2]
[348709933,1736739032982,-35.96411717,0.00019078,2]
[348709934,1736739032994,-129.0217102,0.00019078,2]
[348709935,1736739033003,-300.0,0.00019172,2]
[348709936,1736739033013,-500.99370782,0.00019173,2]
[348709937,1736739033022,-17.04402897,0.00019173,2]
[348709938,1736739038448,-484.54785315,0.00019173,2]
[348709941,1736739038457,-500.97495132,0.00019173,2]
[348709943,1736739038467,-417.77487374,0.00019173,2]
[348709945,1736739038476,-154.48,0.00019177,2]
[348709947,1736739038486,-473.45348462,0.00019177,2]
[348709958,1736739038586,-1088.31219625,0.00019177,2]
[348710088,1736739040996,-175.51792446,0.00019077,2]
[348710089,1736739041006,-5828.23431913,0.00019177,2]
[348710090,1736739041016,-500.0,0.00019177,2]
[348710091,1736739041026,-332.79344816,0.00019177,2]
[348710092,1736739041036,-521.05643976,0.00019177,2]
[348710093,1736739041046,-500.0,0.00019177,2]
[348710094,1736739041057,-500.0,0.00019177,2]
[348710095,1736739041067,-500.0,0.00019177,2]
[348710096,1736739041077,-500.0,0.00019177,2]
[348710097,1736739041086,-56.88387165,0.00019177,2]
[348710121,1736739046557,-143.11612835,0.00019177,2]
[348710122,1736739046567,-500.0,0.00019177,2]
[348710123,1736739046576,-500.0,0.00019177,2]
[348710124,1736739046587,-500.0,0.00019177,2]
[348710125,1736739046597,-500.0,0.00019177,2]
[348710126,1736739046609,-500.0,0.00019177,2]
[348710127,1736739046619,-500.0,0.00019177,2]
[348710128,1736739046629,-467.39473833,0.00019177,2]
[348710129,1736739046639,-500.0,0.00019177,2]
[348710130,1736739046649,-500.0,0.00019177,2]
[348710131,1736739046659,-500.0,0.00019177,2]
[348710132,1736739046669,-500.0,0.00019177,2]
[348710133,1736739046679,-500.0,0.00019177,2]
[348710134,1736739046690,-500.0,0.00019177,2]
[348710135,1736739046699,-500.0,0.00019177,2]
[348710136,1736739046709,-500.0,0.00019177,2]
[348710137,1736739046719,-500.0,0.00019177,2]
[348710138,1736739046728,-500.0,0.00019177,2]
[348710139,1736739046737,-500.0,0.00019177,2]
[348710140,1736739046747,-500.0,0.00019177,2]
[348710141,1736739046756,-500.0,0.00019177,2]
[348710142,1736739046888,-500.0,0.00019177,2]
[348710143,1736739046898,-500.0,0.00019177,2]
[348710144,1736739046907,-500.0,0.00019177,2]
[348710145,1736739046917,-405.31213276,0.00019177,2]
[348710146,1736739046926,-500.0,0.00019177,2]
[348710147,1736739046936,-500.0,0.00019177,2]
[348710148,1736739046946,-500.0,0.00019177,2]
[348710149,1736739046955,-300.0,0.00019177,2]
[348710150,1736739046964,-517.42026758,0.00019177,2]
[348710151,1736739046974,-517.42026758,0.00019177,2]
[348710152,1736739046984,-517.42026758,0.00019177,2]
[348710153,1736739046993,-517.42026758,0.00019177,2]
[348710154,1736739047003,-517.42026758,0.00019177,2]
[348710155,1736739047012,-517.42026758,0.00019177,2]
[348710156,1736739047030,-517.42026758,0.00019177,2]
[348710157,1736739047043,-517.42026758,0.00019177,2]
[348710158,1736739047054,-517.42026758,0.00019177,2]
[348710159,1736739047064,-517.42026758,0.00019177,2]
[348710160,1736739047075,-517.42026758,0.00019177,2]
[348710161,1736739047085,-517.42026758,0.00019177,2]
[348710162,1736739047095,-517.42026758,0.00019177,2]
[348710163,1736739047105,-517.42026758,0.00019177,2]
[348710164,1736739047115,-517.42026758,0.00019177,2]
[348710165,1736739047127,-517.42026758,0.00019177,2]
[348710166,1736739047137,-517.42026758,0.00019177,2]
[348710167,1736739047146,-517.42026761,0.00019177,2]
[348710168,1736739047157,-295.67990653,0.00019177,2]
[348710169,1736739047167,-240.46069141,0.00019177,2]
[348710170,1736739047177,-500.0,0.00019177,2]
[348710171,1736739047187,-614.14800471,0.00019177,2]
[348710172,1736739047197,-6442.72740842,0.00019178,5]
[348710173,1736739047207,-914.46641198,0.00019178,5]
[348710174,1736739047218,-157.34957,0.00019178,2]
[348710175,1736739047228,-418.34435423,0.00019178,2]
[348710176,1736739047238,-506.43374412,0.00019178,2]
[348710177,1736739047248,-500.0,0.00019178,2]
[348710178,1736739047258,-500.0,0.00019178,2]
[348710179,1736739047268,-203.35066898,0.00019178,2]
[348710180,1736739047278,-202.78204334,0.00019178,2]
[348710181,1736739047287,-510.8750253,0.00019178,2]
[348710182,1736739047298,-500.0,0.00019178,2]
[348710183,1736739047310,-513.48750401,0.00019178,2]
[348710184,1736739047320,-500.0,0.00019178,2]
[348710185,1736739047330,-500.0,0.00019178,2]
[348710186,1736739047339,-234.52327448,0.00019178,2]
[348710187,1736739047351,-163.056977,0.00019178,2]
[348710188,1736739047361,-500.0,0.00019178,2]
[348710189,1736739047372,-501.20101974,0.00019178,2]
[348710190,1736739047383,-253.07873812,0.00019178,2]
[348710191,1736739047393,-500.0,0.00019178,2]
[348710192,1736739047403,-500.0,0.00019178,2]
[348710193,1736739047413,-513.45165049,0.00019178,2]
[348710194,1736739047428,-500.0,0.00019178,2]
[348710195,1736739047438,-500.0,0.00019178,2]
[348710196,1736739047448,-500.0,0.00019178,2]
[348710197,1736739047458,-512.55462114,0.00019178,2]
[348710198,1736739047468,-401.18917221,0.00019178,2]
[348710199,1736739047477,-500.0,0.00019178,2]
[348710200,1736739047488,-505.33192698,0.00019178,2]
[348710201,1736739047498,-500.0,0.00019178,2]
[348710202,1736739047508,-578.01462861,0.00019178,2]
[348710203,1736739047517,-500.0,0.00019178,2]
[348710204,1736739047527,-173.020491,0.00019178,2]
[348710205,1736739047536,-163.347262,0.00019178,2]
[348710206,1736739047549,-173.020491,0.00019178,2]
[348710207,1736739047559,-173.020491,0.00019178,2]
[348710208,1736739047568,-500.0,0.00019178,2]
[348710209,1736739047577,-500.0,0.00019178,2]
[348710210,1736739047587,-500.0,0.00019178,2]
[348710211,1736739047597,-500.0,0.00019178,2]
[348710212,1736739047606,-151.0,0.00019178,2]
[348710213,1736739047616,-500.0,0.00019178,2]
[348710214,1736739047626,-151.0,0.00019178,2]
[348710215,1736739047635,-500.0,0.00019178,2]
[348710216,1736739047645,-500.0,0.00019178,2]
[348710217,1736739047655,-567.65,0.00019178,2]
[348710218,1736739047664,-500.0,0.00019178,2]
[348710219,1736739047674,-500.0,0.00019178,2]
[348710220,1736739047683,-500.0,0.00019178,2]
[348710221,1736739047693,-502.58161302,0.00019178,2]
[348710222,1736739047703,-500.0,0.00019178,2]
[348710223,1736739047713,-500.0,0.00019178,2]
[348710224,1736739047722,-500.0,0.00019178,2]
[348710225,1736739047732,-173.17582977,0.00019178,2]
[348710226,1736739047741,-150.4140118,0.00019178,2]
[348710227,1736739047751,-213.59811521,0.00019178,2]
[348710228,1736739047760,-500.0,0.00019178,2]
[348710229,1736739047770,-151.0,0.00019178,2]
[348710230,1736739047780,-151.0,0.00019178,2]
[348710231,1736739047789,-154.412583,0.00019178,2]
[348710232,1736739047798,-500.0,0.00019178,2]
[348710233,1736739047808,-500.0,0.00019178,2]
[348710234,1736739047817,-500.0,0.00019178,2]
[348710235,1736739047827,-500.0,0.00019178,2]
[348710236,1736739047836,-500.0,0.00019178,2]
[348710237,1736739047845,-500.0,0.00019178,2]
[348710238,1736739047855,-295.33421404,0.00019178,2]
[348710239,1736739047864,-500.0,0.00019178,2]
[348710240,1736739047874,-500.0,0.00019178,2]
[348710241,1736739047883,-500.0,0.00019178,2]
[348710242,1736739047892,-500.0,0.00019178,7]
[348710243,1736739047903,-500.0,0.00019178,2]
[348710244,1736739047912,-500.0,0.00019178,2]
[348710245,1736739047922,-500.0,0.00019178,2]
[348710246,1736739047932,-500.0,0.00019178,2]
[348710247,1736739047942,-506.67583204,0.00019178,2]
[348710248,1736739047952,-500.0,0.00019178,2]
[348710249,1736739047961,-151.0,0.00019178,2]
[348710250,1736739047971,-500.0,0.00019178,2]
[348710251,1736739047980,-151.0,0.00019178,2]
[348710252,1736739047990,-500.0,0.00019178,2]
[348710253,1736739048000,-500.0,0.00019178,2]
[348710254,1736739048009,-504.47171601,0.00019178,2]
[348710255,1736739048020,-508.19055629,0.00019178,2]
[348710256,1736739048030,-505.69024853,0.00019178,2]
[348710257,1736739048039,-500.0,0.00019178,2]
[348710258,1736739048049,-503.6929043,0.00019178,2]
[348710259,1736739048059,-500.0,0.00019178,2]
[348710260,1736739048068,-500.0,0.00019178,2]
[348710261,1736739048078,-500.0,0.00019178,2]
[348710262,1736739048087,-500.0,0.00019178,2]
[348710263,1736739048096,-303.02453527,0.00019178,2]
[348710264,1736739048106,-500.0,0.00019178,2]
[348710265,1736739048117,-500.0,0.00019178,2]
[348710266,1736739048126,-413.51298647,0.00019178,2]
[348710267,1736739048135,-500.0,0.00019178,2]
[348710268,1736739048145,-500.0,0.00019178,2]
[348710269,1736739048155,-500.0,0.00019178,2]
[348710270,1736739048164,-500.0,0.00019178,2]
[348710271,1736739048174,-505.7885084,0.00019178,2]
[348710272,1736739048183,-500.0,0.00019178,2]
[348710273,1736739048193,-508.47516096,0.00019178,2]
[348710274,1736739048203,-500.0,0.00019178,2]
[348710275,1736739048212,-500.0,0.00019178,2]
[348710276,1736739048222,-500.0,0.00019178,2]
[348710277,1736739048231,-502.67475658,0.00019178,2]
[348710278,1736739048241,-500.0,0.00019178,2]
[348710279,1736739048251,-500.0,0.00019178,2]
[348710280,1736739048260,-502.75365871,0.00019178,2]
[348710281,1736739048270,-508.97161435,0.00019178,2]
[348710282,1736739048279,-500.0,0.00019178,2]
[348710283,1736739048289,-500.0,0.00019178,2]
[348710284,1736739048299,-505.74863353,0.00019178,2]
[348710285,1736739048312,-151.0,0.00019178,2]
[348710286,1736739048322,-151.0,0.00019178,2]
[348710287,1736739048332,-500.0,0.00019178,2]
[348710288,1736739048342,-500.0,0.00019178,2]
[348710289,1736739048354,-151.0,0.00019178,2]
[348710290,1736739048363,-151.0,0.00019178,2]
[348710291,1736739048376,-500.0,0.00019178,2]
[348710292,1736739048388,-207.78761,0.00019178,2]
[348710293,1736739048397,-500.0,0.00019178,2]
[348710294,1736739048407,-518.04609401,0.00019178,2]
[348710295,1736739048417,-151.0,0.00019178,2]
[348710296,1736739048427,-151.0,0.00019178,2]
[348710297,1736739048436,-500.0,0.00019178,2]
[348710298,1736739048446,-190.50048245,0.00019178,2]
[348710299,1736739048455,-500.0,0.00019178,2]
[348710300,1736739048464,-500.0,0.00019178,2]
[348710301,1736739048474,-151.41033301,0.00019178,2]
[348710302,1736739048484,-150.77555042,0.00019178,2]
[348710303,1736739048495,-151.15774006,0.00019178,2]
[348710304,1736739048504,-151.08327881,0.00019178,2]
[348710305,1736739048514,-150.42955922,0.00019178,2]
[348710306,1736739048523,-512.84673924,0.00019178,2]
[348710307,1736739048533,-500.0,0.00019178,2]
[348710308,1736739048543,-154.717612,0.00019178,2]
[348710309,1736739048553,-500.0,0.00019178,2]
[348710310,1736739048567,-247.591267,0.00019178,2]
[348710311,1736739048577,-247.591267,0.00019178,2]
[348710312,1736739048587,-500.0,0.00019178,2]
[348710313,1736739048597,-151.0,0.00019178,2]
[348710314,1736739048607,-247.591267,0.00019178,2]
[348710315,1736739048620,-164.684042,0.00019178,2]
[348710316,1736739048631,-247.591267,0.00019178,2]
[348710317,1736739048640,-500.0,0.00019178,2]
[348710318,1736739048650,-500.0,0.00019178,2]
[348710319,1736739048660,-500.0,0.00019178,2]
[348710320,1736739048670,-500.0,0.00019178,2]
[348710321,1736739048680,-3217.97,0.00019178,2]
[348710322,1736739048690,-768.95,0.00019178,2]
[348710323,1736739048700,-813.26,0.00019178,2]
[348710324,1736739048710,-500.0,0.00019178,2]
[348710325,1736739048720,-151.0,0.00019178,2]
[348710326,1736739048730,-152.866207,0.00019178,2]
[348710327,1736739048740,-693.74,0.00019178,2]
[348710328,1736739048750,-500.0,0.00019178,2]
[348710329,1736739048760,-2154.61,0.00019178,2]
[348710330,1736739048769,-500.0,0.00019178,2]
[348710331,1736739048779,-392.51603865,0.00019178,2]
[348710332,1736739048789,-525.56919864,0.00019178,2]
[348710333,1736739048799,-500.0,0.00019178,2]
[348710334,1736739048809,-514.67590185,0.00019178,2]
[348710335,1736739048819,-500.0,0.00019178,2]
[348710336,1736739048829,-507.5437567,0.00019178,2]
[348710337,1736739048839,-3271.92,0.00019178,2]
[348710338,1736739048848,-506.31806037,0.00019178,2]
[348710339,1736739048858,-500.0,0.00019178,2]
[348710340,1736739048870,-500.0,0.00019178,2]
[348710341,1736739048879,-544.04,0.00019178,2]
[348710342,1736739048888,-500.0,0.00019178,2]
[348710343,1736739048898,-500.0,0.00019178,2]
[348710344,1736739048907,-3436.23,0.00019178,2]
[348710345,1736739048917,-500.0,0.00019178,2]
[348710346,1736739048927,-500.0,0.00019178,2]
[348710347,1736739048937,-500.0,0.00019178,2]
[348710348,1736739048947,-500.0,0.00019178,2]
[348710349,1736739048957,-514.55196148,0.00019178,2]
[348710350,1736739048968,-500.0,0.00019178,2]
[348710351,1736739048978,-505.35255839,0.00019178,2]
[348710352,1736739048988,-594.53056671,0.00019178,2]
[348710353,1736739048997,-500.0,0.00019178,2]
[348710354,1736739049007,-619.38550532,0.00019178,2]
[348710355,1736739049017,-505.83186894,0.00019178,2]
[348710356,1736739049027,-596.62662245,0.00019178,2]
[348710357,1736739049037,-500.0,0.00019178,2]
[348710358,1736739049048,-500.0,0.00019178,2]
[348710359,1736739049057,-507.36205726,0.00019178,2]
[348710360,1736739049066,-506.22123366,0.00019178,2]
[348710361,1736739049076,-152.3874465,0.00019178,2]
[348710362,1736739049094,-347.6125535,0.00019178,2]
[348710363,1736739049103,-500.0,0.00019178,2]
[348710364,1736739049112,-246.6873665,0.00019178,2]
[348710371,1736739950777,256.977992,0.00013973,2]
[348710407,1736740233226,-399.377059,0.00017736,2]
[348710409,1736740233236,-104.95233125,0.00017736,2]
[348710411,1736740233249,-3809.65098435,0.00017736,2]
[348710413,1736740233259,-428.23324671,0.0001828,2]
[348710415,1736740233272,-627.358,0.0001848,2]
[348710417,1736740233283,-300.0,0.00018731,2]